bitfinex-derivatives/quotes_ETHF0:USTF0_20250309
["timestamp","ask_amount","ask_price","bid_price","bid_amount"]
[1741535504249,0.00715734,2095.9,2095.4,3.2078]
[1741535504852,6.1888,2096.6,2095.8,4.16226]
[1741535505049,3.2078,2096.6,2096.3,0.9542]
[1741535505453,3.2078,2096.6,2096.4,3.002]
[1741535505758,3.2078,2096.9,2096.4,3.002]
[1741535506056,3.21495734,2096.9,2096.4,3.00915734]
[1741535506250,3.21495734,2096.9,2096.5,0.95411]
[1741535506451,4.16891734,2096.9,2096.4,3.96331734]
[1741535506757,0.00715734,2096.9,2096.8,0.954]
[1741535506950,0.00715734,2096.9,2096.8,41.754]
[1741535507358,0.00715734,2096.9,2096.8,41.2776]
[1741535507557,0.00715734,2096.9,2096.8,42.2316]
[1741535507758,2.99788,2097.4,2096.8,44.4854]
[1741535508063,3.95164,2097.4,2096.9,3.94094]
[1741535508257,0.01688,2097.4,2097.2,3.2078]
[1741535509050,0.00715734,2097.5,2097.4,0.95373]
[1741535509256,0.00715734,2097.5,2097.4,3.93473]
[1741535509462,5.41204469,2097.7,2097.5,0.95366]
[1741535509762,5.41204469,2097.7,2097.6,41.75364]
[1741535510148,5.41204469,2097.7,2097.6,40.8]
[1741535511164,6.36563469,2097.7,2097.6,40.8]
[1741535511858,5.41204469,2097.7,2097.4,2.981]
[1741535512063,5.41204469,2097.7,2097.1,2.96]
[1741535512261,3.2078,2097.3,2097.1,2.96]
[1741535512466,4.16158,2097.3,2097.1,2.96]
[1741535512668,3.2078,2097.3,2097.1,2.96]
[1741535512867,4.1616,2097.3,2097.1,2.96]
[1741535513162,4.904,2098.2,2097.1,2.96]
[1741535513163,3.2078,2097.7,2097.1,2.96]
[1741535513469,0.9537,2097.5,2097.1,3.91384]
[1741535514064,3.2078,2097.7,2097.1,2.96]
[1741535514264,4.1616,2097.3,2097.1,2.96]
[1741535514467,0.95382,2097.2,2097.1,2.96]
[1741535515268,0.95371,2097.5,2097.1,2.96]
[1741535515467,0.95371,2097.5,2097.1,3.91383]
[1741535515662,0.95371,2097.5,2097.1,2.96]
[1741535516264,0.95375,2097.4,2097.1,2.96]
[1741535516465,0.9538,2097.3,2097.1,2.96]
[1741535516666,0.95375,2097.4,2097.1,2.96]
[1741535516858,4.904,2097.6,2097.1,2.96]
[1741535517064,0.95378,2097.3,2097.1,2.96]
[1741535517259,4.16157,2097.4,2097.1,2.96]
[1741535517461,0.95382,2097.2,2097.1,2.96]
[1741535517669,0.95391,2097.0,2096.8,66.8726]
[1741535517864,0.95389,2097.1,2096.8,63.188]
[1741535518066,0.95396,2096.9,2096.8,63.188]
[1741535518265,0.95393,2097.0,2096.8,43.726]
[1741535518464,7.885,2097.3,2096.6,0.4776]
[1741535518668,3.2078,2096.8,2096.2,4.16205]
[1741535518864,0.95411,2096.6,2096.3,0.95421]
[1741535519063,0.95411,2096.6,2096.5,40.8]
[1741535519269,0.95408,2096.7,2096.5,40.8]
[1741535519470,3.2078,2096.8,2096.5,40.8]
[1741535519671,4.16183,2096.8,2096.5,40.8]
[1741535519866,4.904,2097.2,2096.5,43.718]
[1741535520071,0.9539,2097.1,2096.7,3.2078]
[1741535520265,0.9539,2097.1,2096.7,4.16184]
[1741535520471,4.904,2097.5,2097.0,4.16168]
[1741535520669,3.2078,2097.6,2097.1,2.915]
[1741535520862,0.95375,2097.4,2097.1,2.915]
[1741535521067,7.885,2097.5,2097.1,2.915]
[1741535521270,0.95376,2097.4,2097.1,2.915]
[1741535521464,7.885,2097.5,2097.1,2.915]
[1741535521868,0.95373,2097.4,2097.1,2.915]
[1741535522068,7.885,2097.5,2097.1,2.915]
[1741535522263,3.2078,2097.7,2097.2,3.2078]
[1741535522467,3.2078,2097.7,2097.3,12.663]
[1741535522677,3.2078,2097.7,2097.4,0.95371]
[1741535522969,3.2078,2097.7,2097.3,12.663]
[1741535523174,3.2078,2097.7,2097.5,0.95366]
[1741535523375,3.2078,2097.7,2097.6,2.902]
[1741535523971,3.2078,2097.7,2097.6,43.702]
[1741535524172,8.61984469,2098.0,2097.6,43.702]
[1741535524375,8.61984469,2098.0,2097.6,44.65561]
[1741535524578,8.61984469,2098.0,2097.6,40.8]
[1741535524778,8.61984469,2098.0,2097.6,40.80715734]
[1741535524981,0.95352,2097.9,2097.6,40.80715734]
[1741535525568,3.2078,2098.0,2097.6,40.80715734]
[1741535525771,0.95355,2097.8,2097.6,40.80715734]
[1741535525971,3.2078,2098.0,2097.6,40.80715734]
[1741535526277,0.95359,2097.7,2097.6,0.00715734]
[1741535526578,4.16139,2097.7,2097.6,0.00715734]
[1741535526882,0.95377,2097.3,2096.8,2.887]
[1741535527082,4.904,2097.6,2096.8,2.887]
[1741535527283,4.904,2097.6,2096.8,6.0948]
[1741535527582,4.16155,2097.4,2097.0,0.95387]
[1741535527775,4.16155,2097.4,2097.1,0.95384]
[1741535527776,3.2078,2097.4,2097.1,0.95384]
[1741535527977,3.21495734,2097.4,2097.0,0.00715734]
[1741535528580,0.95383,2097.2,2097.0,0.00715734]
[1741535528780,3.21495734,2097.4,2097.0,0.00715734]
[1741535529081,0.00715734,2097.4,2097.0,0.00715734]
[1741535529671,0.00715734,2097.4,2097.3,0.95377]
[1741535530077,0.00715734,2097.4,2097.2,3.2078]
[1741535530480,0.00715734,2097.4,2097.3,0.95377]
[1741535530680,0.00715734,2097.4,2097.2,4.16159]
[1741535531183,0.00715734,2097.4,2097.2,3.2078]
[1741535531381,0.00715734,2097.4,2097.3,0.95377]
[1741535532279,3.2078,2097.7,2097.2,3.2078]
[1741535532583,0.95362,2097.7,2097.2,0.95381]
[1741535532783,0.95362,2097.7,2097.3,40.8]
[1741535532974,2.981,2098.0,2097.4,2.864]
[1741535533173,0.95348,2098.0,2097.4,3.81769]
[1741535533378,11.0928,2098.2,2097.4,2.864]
[1741535533584,4.16132,2097.9,2097.4,2.864]
[1741535533777,3.2078,2097.9,2097.4,3.81771]
[1741535533978,3.2078,2097.9,2097.4,2.864]
[1741535534283,0.95357,2097.8,2097.4,2.864]
[1741535534680,11.0928,2098.2,2097.3,44.0078]
[1741535534882,11.0928,2098.2,2097.4,2.847]
[1741535535186,3.2078,2097.8,2097.4,2.847]
[1741535535381,3.2078,2097.8,2097.4,3.80071]
[1741535535683,0.95361,2097.7,2097.5,2.843]
[1741535536073,3.2078,2097.8,2097.3,46.8458]
[1741535536286,4.16138,2097.8,2097.4,0.9537]
[1741535536472,3.2078,2097.8,2097.3,46.8458]
[1741535536879,0.95359,2097.7,2097.3,46.8458]
[1741535537083,0.95359,2097.7,2097.4,0.95371]
[1741535537273,3.2078,2097.8,2097.3,43.638]
[1741535537585,0.95361,2097.7,2097.3,43.638]
[1741535537884,0.95361,2097.7,2097.4,0.9537]
[1741535538082,3.2078,2097.5,2097.3,43.628]
[1741535538280,0.95373,2097.4,2097.3,43.628]
[1741535538486,0.95373,2097.4,2097.3,40.8]
[1741535539485,4.16153,2097.4,2097.3,40.8]
[1741535541091,3.2078,2097.4,2097.3,40.8]
[1741535541386,4.16143,2097.7,2097.3,40.8]
[1741535541583,0.95364,2097.6,2097.3,40.8]
[1741535541784,3.2078,2097.7,2097.3,40.8]
[1741535542085,0.95367,2097.6,2097.3,40.8]
[1741535542391,0.95364,2097.6,2097.3,40.8]
[1741535542584,3.2078,2097.7,2097.3,40.8]
[1741535542776,0.95366,2097.6,2097.3,41.75375]
[1741535542982,0.95373,2097.4,2097.3,40.8]
[1741535543592,4.16153,2097.4,2097.3,40.8]
[1741535546695,3.2078,2097.4,2097.3,40.8]
[1741535546884,4.16153,2097.4,2097.3,40.8]
[1741535547490,3.2078,2097.4,2097.3,40.8]
[1741535547990,4.16153,2097.4,2097.3,40.8]
[1741535548388,5.41204469,2097.6,2097.3,40.8]
[1741535548590,6.36571469,2097.6,2097.3,41.75377]
[1741535548889,0.95373,2097.4,2097.3,40.8]
[1741535549286,4.16153,2097.4,2097.3,40.8]
[1741535549488,0.95373,2097.4,2097.3,40.8]
[1741535549986,0.95369,2097.5,2097.3,40.8]
[1741535550191,0.95373,2097.4,2097.3,40.8]
[1741535550387,0.95371,2097.5,2097.3,40.8]
[1741535550592,0.95369,2097.5,2097.3,41.75376]
[1741535550788,0.95369,2097.5,2097.3,40.8]
[1741535552088,5.41204469,2097.6,2097.3,40.8]
[1741535552295,0.95373,2097.4,2097.3,40.8]
[1741535552591,6.36575469,2097.5,2097.3,40.8]
[1741535553386,5.41204469,2097.5,2097.3,41.75377]
[1741535553591,5.41204469,2097.5,2097.3,40.8]
[1741535553786,0.95373,2097.4,2097.3,40.8]
[1741535553992,6.36575469,2097.5,2097.3,40.8]
[1741535554504,0.95373,2097.4,2097.3,40.8]
[1741535554799,5.41204469,2097.5,2097.3,40.8]
[1741535554991,5.41204469,2097.5,2097.3,41.75375]
[1741535555193,5.41204469,2097.5,2097.3,40.8]
[1741535555593,5.41204469,2097.4,2097.3,40.8]
[1741535555793,5.41204469,2097.4,2097.3,41.75377]
[1741535555993,5.41204469,2097.4,2097.3,40.8]
[1741535557100,5.41204469,2097.4,2097.3,41.75377]
[1741535557797,7.24701769,2097.6,2097.5,0.95368]
[1741535558094,4.904,2098.2,2097.5,0.95368]
[1741535558095,12.73444942,2098.3,2098.0,0.95346]
[1741535558288,6.5201653,2098.3,2098.2,0.95336]
[1741535558487,4.84225153,2098.3,2098.2,0.95336]
[1741535558895,4.84225153,2098.3,2098.0,5.9228]
[1741535559100,8.05005153,2098.3,2098.0,2.715]
[1741535559295,0.95341,2098.1,2098.0,2.715]
[1741535559703,0.95347,2098.0,2097.7,2.709]
[1741535560094,8.05005153,2098.3,2097.7,2.709]
[1741535560494,0.95343,2098.1,2097.7,3.66256]
[1741535560699,0.9535,2097.9,2097.7,2.709]
[1741535560897,3.2078,2098.0,2097.7,2.709]
[1741535561104,4.16128,2098.0,2097.7,2.709]
[1741535561995,3.2078,2098.0,2097.7,2.709]
[1741535562201,3.2078,2098.0,2097.5,7.96]
[1741535562396,0.95364,2097.6,2097.5,2.701]
[1741535562599,0.95371,2097.5,2097.3,40.8]
[1741535562895,4.16153,2097.4,2097.3,40.8]
[1741535563197,3.2078,2097.4,2097.3,40.8]
[1741535563405,3.2078,2097.4,2097.3,13.9567]
[1741535563698,0.95405,2096.7,2096.6,18.66279993]
[1741535564000,0.95393,2097.0,2096.6,19.61686993]
[1741535564206,0.95393,2097.0,2096.6,0.95407]
[1741535564502,8.1118,2097.1,2096.7,40.8]
[1741535564700,0.954,2096.8,2096.7,40.8]
[1741535565095,4.1618,2096.8,2096.7,40.8]
[1741535565293,3.2078,2096.8,2096.7,40.8]
[1741535565494,4.1618,2096.8,2096.7,40.8]
[1741535566302,3.2078,2096.8,2096.7,40.8]
[1741535566506,0.95399,2096.9,2096.7,40.8]
[1741535566806,0.95397,2096.9,2096.7,40.8]
[1741535567303,0.00715734,2097.0,2096.7,40.8]
[1741535567501,0.95396,2096.9,2096.7,40.8]
[1741535567898,0.00715734,2097.0,2096.7,40.8]
[1741535568099,0.954,2096.8,2096.7,40.8]
[1741535568307,4.1618,2096.8,2096.7,40.8]
[1741535571301,0.95405,2096.7,2096.6,0.00715734]
[1741535571504,0.95405,2096.7,2096.1,0.4776]
[1741535571505,0.95444,2095.9,2095.5,17.90405]
[1741535571807,3.2078,2096.1,2095.9,0.95438]
[1741535572105,3.2078,2096.1,2095.6,40.8]
[1741535572106,4.16215,2096.1,2095.8,0.95445]
[1741535572492,4.16215,2096.1,2095.7,0.4776]
[1741535572493,3.2078,2096.1,2095.7,0.48475734]
[1741535572897,3.2078,2096.1,2095.7,0.00715734]
[1741535573105,0.95439,2096.0,2095.7,0.96162734]
[1741535573500,0.95437,2096.0,2095.7,0.00715734]
[1741535573810,0.95445,2095.9,2095.7,0.00715734]
[1741535574305,4.16215,2096.1,2095.8,0.95445]
[1741535574507,4.16215,2096.1,2095.8,0.95444]
[1741535574706,3.2078,2096.1,2096.0,0.95437]
[1741535575004,0.00715734,2096.2,2096.0,0.95435]
[1741535575209,0.00715734,2096.2,2095.9,0.95438]
[1741535575606,0.00715734,2096.2,2095.8,5.9728]
[1741535575807,0.00715734,2096.2,2095.9,0.95439]
[1741535576114,0.00715734,2096.2,2095.9,0.95441]
[1741535576811,0.00715734,2096.2,2096.1,0.95432]
[1741535577009,2.981,2096.6,2096.1,3.2078]
[1741535577201,3.2078,2096.7,2096.2,2.754]
[1741535577402,3.2078,2096.4,2096.2,2.754]
[1741535577701,0.95423,2096.3,2096.2,2.754]
[1741535578103,0.95423,2096.3,2096.2,43.554]
[1741535578304,0.95423,2096.3,2096.2,40.8]
[1741535578613,0.95446,2095.8,2095.7,0.00715734]
[1741535579100,4.95446,2095.8,2095.7,0.00715734]
[1741535579303,3.2078,2095.9,2095.7,0.00715734]
[1741535579508,3.2078,2095.9,2095.8,41.75446]
[1741535579811,7.885,2096.0,2095.9,0.95441]
[1741535580105,0.95441,2095.9,2095.8,40.8]
[1741535580711,12.83941,2095.9,2095.8,40.8]
[1741535580913,8.83941,2095.9,2095.8,40.8]
[1741535581213,7.885,2095.9,2095.8,40.8]
[1741535581413,8.83941,2095.9,2095.8,40.8]
[1741535582114,7.885,2095.9,2095.8,40.8]
[1741535582315,8.83941,2095.9,2095.8,40.8]
[1741535583110,3.2078,2096.0,2095.8,41.75444]
[1741535583111,4.16217,2096.0,2095.8,41.75444]
[1741535583414,4.16217,2096.0,2095.8,41.75446]
[1741535583602,3.2078,2096.0,2095.9,0.95441]
[1741535583801,3.2078,2096.3,2095.8,54.9864]
[1741535584011,3.2078,2096.3,2096.1,0.95429]
[1741535584209,3.2078,2096.3,2096.1,2.749]
[1741535584807,3.2078,2096.3,2096.1,3.70329]
[1741535585809,0.00715734,2096.5,2096.4,0.95418]
[1741535586013,0.00715734,2096.5,2096.4,4.16198]
[1741535586211,0.00715734,2096.5,2096.2,0.4776]
[1741535586411,0.96131734,2096.5,2096.2,0.4776]
[1741535586616,0.95419,2096.4,2096.2,0.4776]
[1741535586814,0.95425,2096.3,2096.1,5.9568]
[1741535587114,0.00715734,2096.5,2096.2,2.743]
[1741535587815,0.96132734,2096.5,2096.2,2.743]
[1741535588012,0.00715734,2096.5,2095.9,6.1397]
[1741535588211,3.21495734,2096.5,2095.9,6.1397]
[1741535588412,0.95429,2096.2,2095.9,8.8787]
[1741535588712,0.96129734,2096.5,2095.9,8.8787]
[1741535588909,0.00715734,2096.5,2095.9,8.8787]
[1741535589104,0.00715734,2096.5,2096.3,4.162]
[1741535589513,0.00715734,2096.5,2096.3,3.2078]
[1741535589710,0.00715734,2096.5,2096.0,4.16215]
[1741535589912,0.95425,2096.3,2096.0,3.2078]
[1741535590315,0.95421,2096.4,2096.0,4.16214]
[1741535590517,0.95421,2096.4,2096.1,2.735]
[1741535590914,0.95425,2096.3,2096.1,2.735]
[1741535591110,0.95421,2096.4,2096.1,2.735]
[1741535591417,0.95418,2096.4,2096.1,2.735]
[1741535592313,3.21495734,2096.5,2096.1,2.735]
[1741535592519,0.95426,2096.3,2096.1,2.735]
[1741535592915,0.95427,2096.2,2096.1,2.735]
[1741535593418,3.21495734,2096.5,2096.0,3.2078]
[1741535593614,0.95432,2096.1,2095.8,51.7786]
[1741535593918,0.95441,2095.9,2095.8,46.8507]
[1741535594316,0.95446,2095.8,2095.7,0.00715734]
[1741535594719,0.95446,2095.8,2095.7,40.80715734]
[1741535595024,0.95446,2095.8,2095.7,0.00715734]
[1741535595412,0.95446,2095.8,2095.7,40.80715734]
[1741535595812,0.95446,2095.8,2095.7,0.00715734]
[1741535596321,9.85846,2095.8,2095.7,0.00715734]
[1741535597917,5.85846,2095.8,2095.7,0.00715734]
[1741535598822,9.85846,2095.8,2095.7,0.00715734]
[1741535599020,9.85846,2095.8,2095.7,7.34e-06]
[1741535599621,12.83946,2095.8,2095.7,7.34e-06]
[1741535600418,0.95496,2094.7,2094.6,3.2078]
[1741535600814,0.95505,2094.5,2094.4,5.9737]
[1741535601011,0.95505,2094.5,2094.4,46.7737]
[1741535601618,0.95505,2094.5,2094.4,40.8]
[1741535602821,4.904,2094.6,2094.4,40.8]
[1741535603022,0.00715734,2094.7,2094.4,40.8]
[1741535603210,11.0928,2095.4,2094.6,3.2078]
[1741535603410,4.904,2095.5,2095.0,3.2078]
[1741535603623,11.0928,2095.7,2095.0,3.2078]
[1741535603916,0.95465,2095.4,2095.0,4.16259]
[1741535604224,6.1888,2095.7,2095.0,3.2078]
[1741535604520,3.21495734,2095.4,2094.7,12.3957]
[1741535604919,3.21495734,2095.4,2094.7,12.3927]
[1741535605418,0.9548,2095.1,2094.8,0.95491]
[1741535605620,3.21495734,2095.4,2094.7,12.3927]
[1741535605812,3.21495734,2095.4,2094.7,12.3867]
[1741535606221,0.95482,2095.1,2094.8,0.95489]
[1741535606624,0.95483,2095.0,2094.8,0.95489]
[1741535606819,0.95479,2095.1,2094.8,0.95489]
[1741535607325,3.21495734,2095.4,2094.7,12.3867]
[1741535607823,3.21495734,2095.4,2094.8,0.9549]
[1741535608017,0.95491,2094.8,2094.7,9.7047]
[1741535608223,3.2078,2095.0,2094.5,4.8309]
[1741535608413,3.2078,2094.7,2094.2,3.21495734]
[1741535608620,0.95514,2094.3,2094.2,0.00715734]
[1741535609021,4.95514,2094.3,2094.2,0.00715734]
[1741535609921,0.95514,2094.3,2094.2,0.00715734]
[1741535610124,4.95514,2094.3,2094.2,0.00715734]
[1741535610321,12.84014,2094.3,2094.2,7.34e-06]
[1741535610624,15.51514,2094.3,2094.2,7.34e-06]
[1741535610830,0.95555,2093.4,2093.2,18.66279993]
[1741535611430,5.59632,2093.8,2093.2,18.66279993]
[1741535611722,0.9556,2093.3,2093.2,18.66279993]
[1741535611931,5.8596,2093.3,2093.2,18.66279993]
[1741535612518,0.95569,2093.1,2093.0,0.00715734]
[1741535612722,4.904,2093.3,2093.0,0.00715734]
[1741535612918,4.904,2093.3,2093.2,0.95564]
[1741535613122,7.89215734,2093.7,2093.2,5.8758]
[1741535613324,7.89215734,2093.7,2093.5,0.95548]
[1741535613834,7.89215734,2093.7,2093.6,0.95546]
[1741535614127,7.89215734,2093.7,2093.6,4.16326]
[1741535614331,0.00715734,2093.7,2093.6,3.2078]
[1741535614732,0.96258734,2093.7,2093.3,7.35337]
[1741535615028,0.00715734,2093.7,2093.5,0.95549]
[1741535615233,0.00715734,2093.7,2093.5,0.95548]
[1741535615434,0.00715734,2093.7,2093.4,0.95553]
[1741535615635,0.96258734,2093.7,2093.3,7.35338]
[1741535615833,0.96258734,2093.7,2093.4,2.657]
[1741535616038,0.00715734,2093.7,2093.4,2.657]
[1741535616242,0.00715734,2093.7,2093.4,3.61253]
[1741535616429,0.00715734,2093.7,2093.4,2.657]
[1741535616731,0.00715734,2093.7,2093.3,6.3978]
[1741535616732,0.95546,2093.6,2093.3,6.3978]
[1741535616941,0.95551,2093.5,2093.3,9.0498]
[1741535617139,0.00715734,2093.7,2093.3,9.0498]
[1741535617530,0.95555,2093.4,2093.3,9.0498]
[1741535617731,0.95555,2093.4,2093.3,6.3978]
[1741535618035,3.21495734,2093.7,2093.0,0.00715734]
[1741535618342,0.95569,2093.1,2093.0,0.00715734]
[1741535619537,8.16349,2093.1,2093.0,0.00715734]
[1741535619735,16.04849,2093.1,2093.0,7.34e-06]
[1741535620433,0.95596,2092.5,2092.4,40.8]
[1741535620633,0.95596,2092.5,2092.1,6.5437]
[1741535620634,0.9561,2092.2,2092.1,6.5437]
[1741535621139,0.9561,2092.2,2092.1,47.3437]
[1741535621543,4.904,2092.5,2092.1,47.3437]
[1741535621733,0.00715734,2092.4,2092.1,48.29984]
[1741535621932,0.00715734,2092.4,2092.3,0.95605]
[1741535622237,2.981,2092.7,2092.2,3.2078]
[1741535622837,2.981,2092.7,2092.4,0.95598]
[1741535623039,8.1118,2093.3,2092.5,5.8438]
[1741535623340,0.95581,2092.9,2092.6,6.3835]
[1741535623638,0.00715734,2093.1,2093.0,0.95573]
[1741535623941,0.00715734,2093.1,2092.9,2.642]
[1741535624142,0.95573,2093.0,2092.9,6.0475]
[1741535624844,0.95573,2093.0,2092.9,46.8475]
[1741535625034,0.00715734,2093.1,2092.9,46.8475]
[1741535625337,0.95573,2093.0,2092.9,46.8475]
[1741535625741,4.16353,2093.0,2092.9,40.8]
[1741535626140,3.2078,2093.0,2092.8,0.00715734]
[1741535626341,0.95578,2092.9,2092.8,0.00715734]
[1741535626935,12.84078,2092.9,2092.8,7.34e-06]
[1741535628139,15.73308,2092.9,2092.8,7.34e-06]
[1741535629240,11.73308,2092.9,2092.8,7.34e-06]
[1741535629438,15.73308,2092.9,2092.8,7.34e-06]
[1741535629938,12.84078,2092.9,2092.8,7.34e-06]
[1741535630536,8.84078,2092.9,2092.8,7.34e-06]
[1741535631545,8.84078,2092.9,2092.8,0.95582734]
[1741535631546,2.981,2092.9,2092.8,0.95582734]
[1741535631737,3.93678,2092.9,2092.8,7.34e-06]
[1741535634235,7.93678,2092.9,2092.8,7.34e-06]
[1741535634939,12.84078,2092.9,2092.8,7.34e-06]
[1741535635647,13.22001572,2092.9,2092.8,7.34e-06]
[1741535636651,9.22001572,2092.9,2092.8,7.34e-06]
[1741535636848,13.22001572,2092.9,2092.8,7.34e-06]
[1741535637041,9.22001572,2092.9,2092.8,7.34e-06]
[1741535637547,8.84078,2092.9,2092.8,7.34e-06]
[1741535638355,12.26518542,2092.9,2091.8,3.2078]
[1741535638539,3.2078,2092.4,2091.9,6.3539]
[1741535638746,0.95619,2092.0,2091.9,6.3539]
[1741535639042,0.95619,2092.0,2091.9,47.1539]
[1741535639246,4.904,2092.4,2091.9,47.1539]
[1741535639449,0.95619,2092.0,2091.9,47.1539]
[1741535639752,4.904,2092.4,2091.9,47.1539]
[1741535639943,2.38999,2092.5,2091.9,48.11013]
[1741535640148,0.9561,2092.2,2092.1,3.2078]
[1741535640844,0.9561,2092.2,2092.1,44.0078]
[1741535641051,0.95607,2092.3,2092.1,44.0078]
[1741535641253,0.95607,2092.3,2092.2,5.0157]
[1741535641548,3.2078,2092.3,2091.7,0.00715734]
[1741535641754,0.95628,2091.8,2091.7,0.00715734]
[1741535642950,5.86028,2091.9,2091.7,0.00715734]
[1741535643158,4.904,2091.9,2091.7,4.79925734]
[1741535643356,0.00715734,2092.0,2091.8,6.3241]
[1741535643549,3.2078,2092.4,2091.9,0.95623]
[1741535643748,3.2078,2092.4,2092.0,7.17037]
[1741535644048,3.2078,2092.4,2092.0,7.17036]
[1741535644250,3.2078,2092.8,2092.0,9.422]
[1741535644444,7.885,2092.9,2092.6,0.95589]
[1741535644643,2.981,2093.3,2092.7,6.2142]
[1741535644843,0.96295734,2092.9,2092.7,6.2142]
[1741535645049,2.981,2093.3,2092.8,0.00715734]
[1741535645245,0.95566,2093.2,2092.8,0.00715734]
[1741535645450,3.2078,2093.4,2093.0,3.2078]
[1741535645651,0.95578,2092.9,2092.8,0.00715734]
[1741535646051,8.1118,2093.4,2092.8,0.00715734]
[1741535646252,0.00715734,2093.1,2092.9,0.95577]
[1741535646552,4.904,2093.4,2092.8,0.00715734]
[1741535646759,0.95572,2093.1,2092.8,5.97016734]
[1741535646951,3.2078,2093.3,2092.8,5.97017734]
[1741535647146,0.95568,2093.2,2092.8,5.97017734]
[1741535647653,4.904,2093.4,2093.0,0.95573]
[1741535647856,4.904,2093.4,2092.9,40.8]
[1741535648050,4.904,2093.4,2093.1,0.95565]
[1741535648252,5.85955,2093.4,2093.1,0.95565]
[1741535648453,5.85955,2093.4,2093.0,0.95571]
[1741535648759,4.904,2093.4,2093.0,3.2078]
[1741535649053,5.85958,2093.4,2093.0,4.16353]
[1741535649263,4.904,2093.4,2093.0,3.2078]
[1741535649452,0.95569,2093.1,2093.0,3.2078]
[1741535649652,4.904,2093.4,2093.0,9.211]
[1741535649953,0.95566,2093.2,2093.0,9.211]
[1741535650159,4.904,2093.4,2093.0,9.211]
[1741535650360,4.904,2093.4,2093.0,10.16672]
[1741535650564,0.95563,2093.3,2093.0,9.211]
[1741535651061,4.904,2093.4,2093.0,9.211]
[1741535651660,0.95565,2093.2,2093.0,9.211]
[1741535651860,4.904,2093.4,2093.0,9.211]
[1741535652169,0.95569,2093.1,2093.0,9.211]
[1741535652351,3.2078,2093.3,2093.0,9.211]
[1741535652865,3.2078,2093.6,2093.0,9.211]
[1741535653249,0.95578,2092.9,2092.8,45.81435734]
[1741535653557,5.85978,2092.9,2092.8,0.00715734]
[1741535657059,0.95578,2092.9,2092.8,0.00715734]
[1741535657452,2.626,2093.3,2092.8,0.00715734]
[1741535657453,0.95562,2093.3,2092.8,0.00715734]
[1741535657657,3.2078,2093.5,2093.2,0.95563]
[1741535657858,0.95555,2093.4,2093.3,6.4971]
[1741535658557,3.2078,2093.5,2093.3,6.4971]
[1741535658759,0.95555,2093.4,2093.3,6.4971]
[1741535658966,0.95555,2093.4,2093.3,11.5261]
[1741535659156,3.2078,2093.5,2093.3,11.5261]
[1741535659365,3.2078,2093.5,2093.4,40.8]
[1741535659366,0.95553,2093.5,2093.4,40.8]
[1741535660061,0.95555,2093.4,2093.3,6.4971]
[1741535660263,5.59665,2093.5,2092.8,0.00715734]
[1741535660572,0.95571,2093.1,2092.9,40.8]
[1741535660866,0.95573,2093.0,2092.9,40.8]
[1741535661366,0.95578,2092.9,2092.8,6.51715734]
[1741535661566,4.16358,2092.9,2092.8,6.51715734]
[1741535661862,3.2078,2092.9,2092.0,4.64237]
[1741535662061,3.2078,2092.9,2092.0,3.6862]
[1741535662062,0.95614,2092.1,2092.0,3.6862]
[1741535662266,0.95614,2092.1,2091.9,11.3647]
[1741535662561,0.95619,2092.0,2091.9,11.3647]
[1741535662970,0.95619,2092.0,2091.9,52.1647]
[1741535663156,0.95628,2091.8,2091.7,0.00715734]
[1741535663763,7.58428,2091.8,2091.7,0.00715734]
[1741535664067,11.46928,2091.8,2091.7,7.34e-06]
[1741535664366,0.00715734,2092.2,2091.7,2.64700734]
[1741535664556,0.95628,2091.8,2091.7,2.64700734]
[1741535664864,0.95628,2091.8,2091.7,7.34e-06]
[1741535665168,4.95628,2091.8,2091.7,7.34e-06]
[1741535665768,12.84128,2091.8,2091.7,7.34e-06]
[1741535666456,8.84128,2091.8,2091.7,7.34e-06]
[1741535666862,12.84128,2091.8,2091.7,7.34e-06]
[1741535668866,0.95628,2091.8,2091.7,7.34e-06]
[1741535669058,4.904,2091.9,2091.7,7.34e-06]
[1741535669264,0.95628,2091.8,2091.7,7.34e-06]
[1741535669671,0.95622,2092.0,2091.7,0.95632734]
[1741535669866,3.2078,2092.0,2091.7,7.34e-06]
[1741535670161,0.00715734,2092.2,2091.9,4.16401]
[1741535670366,0.00715734,2092.2,2091.9,9.2397]
[1741535670564,3.2078,2092.9,2092.0,8.6894]
[1741535670871,3.2078,2093.2,2092.7,3.2078]
[1741535671166,3.2078,2093.2,2092.8,6.075]
[1741535671375,3.2078,2093.2,2092.8,12.6621]
[1741535671766,4.17061,2093.2,2092.8,13.62507734]
[1741535672063,0.00715,2093.2,2092.8,12.66925734]
[1741535672259,0.95571,2093.1,2092.8,12.66925734]
[1741535672466,0.96281,2093.2,2092.8,13.62507734]
[1741535672665,0.00715,2093.2,2092.8,12.66925734]
[1741535672865,0.00715,2093.2,2093.0,3.2078]
[1741535673067,0.00715,2093.2,2093.0,2.643]
[1741535673275,0.96282,2093.2,2093.0,2.643]
[1741535673675,0.95569,2093.1,2093.0,2.643]
[1741535673974,0.95573,2093.1,2092.8,12.66925734]
[1741535674175,0.00715,2093.2,2092.8,12.66925734]
[1741535674474,4.16358,2092.9,2092.8,7.34e-06]
[1741535674961,3.21495,2093.2,2092.8,7.34e-06]
[1741535675161,0.00715,2093.2,2092.8,7.34e-06]
[1741535675379,0.95572,2093.1,2092.8,7.34e-06]
[1741535675567,0.95578,2092.9,2092.8,5.96300734]
[1741535675767,0.95572,2093.1,2092.8,46.76300734]